[Event "NOR-chT Eliteserien 2018-19"]
[Site "Norway"]
[Date "2019.03.10"]
[Round "9.6"]
[White "Machlik, Monika"]
[Black "Frisvold, Ole Emil"]
[Result "1-0"]
[ECO "D12"]
[WhiteElo "2071"]
[BlackElo "2131"]
[Annotator "NA"]
[PlyCount "89"]
[EventDate "2018.11.02"]
[EventType "team-tourn"]
[EventCountry "NOR"]
[SourceTitle "playchess.com"]
[Source "ChessBase"]
[SourceQuality "1"]
[TimeControl "40/5400+30:1800+30"]

1. d4 {[%emt 0:00:00]} d5 {[%emt 0:00:00]} 2. c4 {[%emt 0:00:00]} c6 {[%emt 0:00:00]} 3. Nf3 {[%emt 0:00:00]} Nf6 {[%emt 0:00:00]} 4. e3 {[%emt 0:00:14]} Bf5 {[%emt 0:00:21]} 5. Nc3 {[%emt 0:00:33]} e6 {[%emt 0:00:29]} 6. Nh4 {[%emt 0:01:06]} Bg6 {[%emt 0:01:06]} 7. Be2 {[%emt 0:03:32]} Bd6 {[%emt 0:02:06]} 8. Qb3 {[%emt 0:04:18]} Qc7 {[%emt 0:04:06]} 9. Nxg6 {[%emt 0:05:46]} hxg6 {[%emt 0:02:24]} 10. h3 {[%emt 0:00:14]} Nbd7 {[%emt 0:04:06]} 11. Bd2 {[%emt 0:03:53]} a6 {[%emt 0:25:40]} 12. cxd5 {[%emt 0:07:39]} exd5 {[%emt 0:01:24]} 13. Rc1 {[%emt 0:01:35]} Rc8 {[%emt 0:11:59]} 14. Bf3 {[%emt 0:05:45]} Qb8 {[%emt 0:12:47]} 15. O-O {[%emt 0:06:15]} g5 {[%emt 0:04:01]} 16. Rfe1 {[%emt 0:07:15]} Kf8 {[%emt 0:05:16]} 17. e4 {[%emt 0:17:43]} g4 {[%emt 0:01:07]} 18. hxg4 {[%emt 0:01:59]} dxe4 {[%emt 0:01:07]} 19. Nxe4 {[%emt 0:01:58]} Nxe4 {[%emt 0:03:58]} 20. Bxe4 {[%emt 0:02:45]} Nf6 {[%emt 0:08:10]} 21. Bf5 {[%emt 0:07:03]} Rd8 {[%emt 0:00:38]} 22. g5 {[%emt 0:06:29]} Nd5 {[%emt 0:01:21]} 23. g3 {[%emt 0:01:06]} g6 {[%emt 0:01:57]} 24. Bg4 {[%emt 0:00:49]} Kg7 {[%emt 0:00:56]} 25. Kg2 {[%emt 0:00:50]} Qc7 {[%emt 0:01:35]} 26. Bf3 {[%emt 0:04:52]} Qc8 {[%emt 0:02:20]} 27. Rh1 {[%emt 0:00:58]} Be7 {[%emt 0:00:58]} 28. Rxh8 {[%emt 0:05:26]} Rxh8 {[%emt 0:00:41]} 29. Bxd5 {[%emt 0:00:42]} Qh3+ {[%emt 0:00:23]} 30. Kg1 {[%emt 0:00:12]} cxd5 {[%emt 0:02:07]} 31. Qxd5 {[%emt 0:00:24]} Qh2+ {[%emt 0:00:24]} 32. Kf1 {[%emt 0:00:02]} Qh3+ {[%emt 0:00:14]} 33. Kg1 {[%emt 0:01:05]} Qh2+ {[%emt 0:00:06]} 34. Kf1 {[%emt 0:00:04]} Qh3+ {[%emt 0:00:04]} 35. Qg2 {[%emt 0:01:54]} Qf5 {[%emt 0:00:20]} 36. Kg1 {[%emt 0:02:28]} Bxg5 {[%emt 0:00:53]} 37. Bxg5 {[%emt 0:00:29]} Qxg5 {[%emt 0:00:04]} 38. Rd1 {[%emt 0:00:43]} Qb5 {[%emt 0:01:03]} 39. d5 {[%emt 0:00:47]} Qxb2 {[%emt 0:01:24]} 40. d6 {[%emt 0:00:29]} Qc2 {[%emt 0:00:54]} 41. Qd5 {[%emt 0:04:25]} Qc6 {[%emt 0:09:30]} 42. Qe5+ {[%emt 0:04:09]} f6 {[%emt 0:00:52]} 43. Qe7+ {[%emt 0:01:29]} Kg8 {[%emt 0:00:32]} 44. Qd8+ {[%emt 0:00:25]} Kg7 {[%emt 0:00:08]} 45. Qxh8+ {[%emt 0:02:37]} 1-0

[Event "NOR-chT Eliteserien 2018-19"]
[Site "Norway"]
[Date "2019.03.10"]
[Round "9.12"]
[White "Vitenberg, Noam Aviv"]
[Black "Christenson, Flemming"]
[Result "1-0"]
[ECO "E32"]
[WhiteElo "2139"]
[BlackElo "2204"]
[Annotator "NA RC"]
[PlyCount "97"]
[EventDate "2018.11.02"]
[EventType "team-tourn"]
[EventCountry "NOR"]
[SourceTitle "playchess.com"]
[Source "ChessBase"]
[SourceQuality "1"]
[TimeControl "40/5400+30:1800+30"]

1. d4 {[%emt 0:00:00]} e6 {[%emt 0:00:00]} 2. c4 {[%emt 0:00:00]} f5 {[%emt 0:00:13]} 3. Nc3 {[%emt 0:00:09]} Nf6 {[%emt 0:00:08]} 4. Qc2 {[%emt 0:00:21]} Bb4 {[%emt 0:02:54]} 5. a3 {[%emt 0:00:15]} Bxc3+ {[%emt 0:00:04]} 6. Qxc3 {[%emt 0:00:09]} Ne4 {[%emt 0:00:53]} 7. Qc2 {[%emt 0:00:50]} b6 {[%emt 0:01:39]} 8. Nh3 {[%emt 0:03:57]} Bb7 {[%emt 0:03:07]} 9. f3 {[%emt 0:01:36]} Nf6 {[%emt 0:00:53]} 10. e3 {[%emt 0:00:52]} O-O {[%emt 0:00:37]} 11. Be2 {[%emt 0:02:58]} a5 {[%emt 0:02:22]} 12. b3 {[%emt 0:01:20]} d6 {[%emt 0:06:38]} 13. Bb2 {[%emt 0:01:40]} Nbd7 {[%emt 0:00:58]} 14. O-O {[%emt 0:01:59]} Qe7 {[%emt 0:02:40]} 15. b4 {[%emt 0:06:00]} Nh5 {[%emt 0:09:49]} 16. e4 {[%emt 0:21:08]} fxe4 {[%emt 0:06:26]} 17. fxe4 {[%emt 0:03:20]} Qh4 {[%emt 0:01:19]} 18. d5 {[%emt 0:07:53]} e5 {[%emt 0:02:02]} 19. Bc3 {[%emt 0:14:24]} Nf4 {[%emt 0:07:45]} 20. Nxf4 {[%emt 0:01:37]} Rxf4 {[%emt 0:01:31]} 21. Bf3 {[%emt 0:05:27]} Rff8 {[%emt 0:02:08]} 22. Qb2 {[%emt 0:01:51]} Ba6 {[%emt 0:03:50]} 23. Qc2 {[%emt 0:02:31]} Bb7 {[%emt 0:24:57]} 24. Be1 {[%emt 0:00:48]} Qg5 {[%emt 0:00:44]} 25. Bd2 {[%emt 0:00:28]} Qg6 {[%emt 0:00:41]} 26. bxa5 {[%emt 0:04:45]} bxa5 {[%emt 0:00:39]} 27. Rab1 {[%emt 0:03:27]} Bc8 {[%emt 0:04:51]} 28. Rb5 {[%emt 0:01:31]} a4 {[%emt 0:02:56]} 29. Ra5 {[%emt 0:00:48]} Rb8 {[%emt 0:04:48]} 30. Bb4 {[%emt 0:05:52]} Nb6 {[%emt 0:03:56]} 31. c5 {[%emt 0:00:46]} dxc5 {[%emt 0:02:18]} 32. Bxc5 {[%emt 0:01:02]} Rf7 {[%emt 0:00:30]} 33. Qe2 {[%emt 0:00:56]} Bd7 {[%emt 0:01:11]} 34. Ra7 {[%emt 0:01:04]} Be8 {[%emt 0:00:36]} 35. Rc1 {[%emt 0:01:30]} Nc8 {[%emt 0:00:25]} 36. Bh5 {[%emt 0:00:48]} Qg5 {[%emt 0:01:00]} 37. Bxf7+ {[%emt 0:00:18]} Bxf7 {[%emt 0:00:01]} 38. Be3 {[%emt 0:00:12]} Qg6 {[%emt 0:00:57]} 39. Raxc7 {[%emt 0:00:10]} Nd6 {[%emt 0:00:28]} 40. R7c6 {[%emt 0:00:23]} Be8 {[%emt 0:00:31]} 41. Rb6 {[%emt 0:05:45]} Rd8 {[%emt 0:01:25]} 42. Bc5 {[%emt 0:01:59]} Qxe4 {[%emt 0:03:32]} 43. Qxe4 {[%emt 0:00:53]} Nxe4 {[%emt 0:00:03]} 44. Re6 {[%emt 0:00:59]} Nf6 {[%emt 0:10:30]} 45. Be7 {[%emt 0:01:14]} Rb8 {[%emt 0:01:18]} 46. Bxf6 {[%emt 0:00:39]} gxf6 {[%emt 0:00:03]} 47. Rxf6 {[%emt 0:00:08]} Bf7 {[%emt 0:00:34]} 48. d6 {[%emt 0:00:12]} Rd8 {[%emt 0:01:08]} 49. Rc7 {[%emt 0:00:39]} 1-0

[Event "NOR-chT Eliteserien 2018-19"]
[Site "Norway"]
[Date "2019.03.10"]
[Round "9.29"]
[White "Rygg, Andreas Gangstad"]
[Black "Lahlum, Hans Olav"]
[Result "0-1"]
[ECO "C01"]
[WhiteElo "1869"]
[BlackElo "2122"]
[Annotator "NA"]
[PlyCount "100"]
[EventDate "2018.11.02"]
[EventType "team-tourn"]
[EventCountry "NOR"]
[SourceTitle "playchess.com"]
[Source "ChessBase"]
[SourceQuality "1"]
[TimeControl "40/5400+30:1800+30"]

1. e4 {[%emt 0:00:00]} e6 {[%emt 0:00:00]} 2. d4 {[%emt 0:00:00]} d5 {[%emt 0:00:00]} 3. Nc3 {[%emt 0:00:00]} Bb4 {[%emt 0:00:00]} 4. exd5 {[%emt 0:00:00]} exd5 {[%emt 0:00:00]} 5. Bd3 {[%emt 0:00:00]} Nc6 {[%emt 0:00:03]} 6. a3 {[%emt 0:00:00]} Bxc3+ {[%emt 0:00:15]} 7. bxc3 {[%emt 0:03:13]} Be6 {[%emt 0:00:06]} 8. Ne2 {[%emt 0:00:56]} Qd7 {[%emt 0:01:30]} 9. O-O {[%emt 0:02:45]} Nge7 {[%emt 0:03:44]} 10. Nf4 {[%emt 0:08:40]} Bf5 {[%emt 0:00:41]} 11. Re1 {[%emt 0:00:48]} O-O {[%emt 0:01:02]} 12. Rb1 {[%emt 0:01:00]} Bxd3 {[%emt 0:00:44]} 13. Nxd3 {[%emt 0:06:11]} b6 {[%emt 0:00:21]} 14. Bf4 {[%emt 0:00:13]} Ng6 {[%emt 0:00:37]} 15. Bg3 {[%emt 0:01:22]} Na5 {[%emt 0:01:20]} 16. h4 {[%emt 0:17:03]} Nc4 {[%emt 0:00:56]} 17. h5 {[%emt 0:02:18]} Ne7 {[%emt 0:01:04]} 18. Ne5 {[%emt 0:00:39]} Nxe5 {[%emt 0:00:31]} 19. Bxe5 {[%emt 0:02:57]} Nc6 {[%emt 0:01:22]} 20. Bf4 {[%emt 0:03:51]} Na5 {[%emt 0:03:22]} 21. Qf3 {[%emt 0:08:25]} Nc4 {[%emt 0:05:19]} 22. h6 {[%emt 0:01:39]} g6 {[%emt 0:07:31]} 23. Bxc7 {[%emt 0:12:32]} f6 {[%emt 0:04:36]} 24. Bf4 {[%emt 0:01:10]} Nxa3 {[%emt 0:00:42]} 25. Rb2 {[%emt 0:02:58]} Nc4 {[%emt 0:00:18]} 26. Ra2 {[%emt 0:00:52]} a5 {[%emt 0:01:12]} 27. Bc1 {[%emt 0:05:46]} Rae8 {[%emt 0:03:06]} 28. Rd1 {[%emt 0:04:36]} Re6 {[%emt 0:03:07]} 29. Be3 {[%emt 0:02:33]} Rfe8 {[%emt 0:00:50]} 30. Rb1 {[%emt 0:00:59]} f5 {[%emt 0:02:41]} 31. Bf4 {[%emt 0:03:42]} Re1+ {[%emt 0:08:15]} 32. Rxe1 {[%emt 0:00:07]} Rxe1+ {[%emt 0:00:04]} 33. Kh2 {[%emt 0:00:05]} Qe6 {[%emt 0:00:23]} 34. Qd3 {[%emt 0:06:28]} Qe2 {[%emt 0:04:58]} 35. Qxe2 {[%emt 0:00:58]} Rxe2 {[%emt 0:00:05]} 36. Be3 {[%emt 0:00:45]} b5 {[%emt 0:02:42]} 37. Kg3 {[%emt 0:01:44]} a4 {[%emt 0:01:26]} 38. Bg5 {[%emt 0:00:57]} Re1 {[%emt 0:01:35]} 39. Bf4 {[%emt 0:00:38]} a3 {[%emt 0:01:31]} 40. f3 {[%emt 0:00:35]} Rb1 {[%emt 0:01:22]} 41. Bg5 {[%emt 0:04:53]} Rb2 {[%emt 0:04:05]} 42. Ra1 {[%emt 0:00:08]} a2 {[%emt 0:01:14]} 43. Be7 {[%emt 0:16:09]} Rxc2 {[%emt 0:01:25]} 44. Bb4 {[%emt 0:00:50]} Re2 {[%emt 0:12:10]} 45. Kh3 {[%emt 0:02:21]} Kf7 {[%emt 0:00:45]} 46. f4 {[%emt 0:07:18]} Rb2 {[%emt 0:04:24]} 47. g4 {[%emt 0:01:52]} fxg4+ {[%emt 0:00:36]} 48. Kxg4 {[%emt 0:00:06]} Nd2 {[%emt 0:01:28]} 49. Re1 {[%emt 0:00:56]} Rxb4 {[%emt 0:01:59]} 50. cxb4 {[%emt 0:00:28]} Nb1 {[%emt 0:00:44]} 0-1

[Event "NOR-chT Eliteserien 2018-19"]
[Site "Norway"]
[Date "2019.03.10"]
[Round "9.30"]
[White "Runde, Hans Arild"]
[Black "Oye-Stromberg, Alexander"]
[Result "1/2-1/2"]
[ECO "A26"]
[WhiteElo "1876"]
[BlackElo "1873"]
[Annotator "NA"]
[PlyCount "42"]
[EventDate "2018.11.02"]
[EventType "team-tourn"]
[EventCountry "NOR"]
[SourceTitle "playchess.com"]
[Source "ChessBase"]
[SourceQuality "1"]
[TimeControl "40/5400+30:1800+30"]

1. Nf3 {[%emt 0:00:58]} Nf6 {[%emt 0:00:00]} 2. g3 {[%emt 0:00:19]} g6 {[%emt 0:00:44]} 3. Bg2 {[%emt 0:00:06]} Bg7 {[%emt 0:00:04]} 4. O-O {[%emt 0:00:13]} O-O {[%emt 0:00:08]} 5. c4 {[%emt 0:00:18]} d6 {[%emt 0:06:26]} 6. Nc3 {[%emt 0:03:31]} Nc6 {[%emt 0:06:37]} 7. d3 {[%emt 0:07:54]} e5 {[%emt 0:00:30]} 8. Rb1 {[%emt 0:09:21]} Nd7 {[%emt 0:12:03]} 9. Nd5 {[%emt 0:08:06]} h6 {[%emt 0:01:08]} 10. b4 {[%emt 0:04:51]} f5 {[%emt 0:02:50]} 11. b5 {[%emt 0:07:27]} Ne7 {[%emt 0:00:30]} 12. Nd2 {[%emt 0:07:15]} Nf6 {[%emt 0:10:14]} 13. Nxf6+ {[%emt 0:01:19]} Rxf6 {[%emt 0:01:29]} 14. e3 {[%emt 0:00:18]} c6 {[%emt 0:05:39]} 15. bxc6 {[%emt 0:06:02]} bxc6 {[%emt 0:08:06]} 16. Qa4 {[%emt 0:04:36]} Qc7 {[%emt 0:04:16]} 17. Ba3 {[%emt 0:03:46]} Bd7 {[%emt 0:06:55]} 18. Qa6 {[%emt 0:04:05]} Bc8 {[%emt 0:00:28]} 19. Qa4 {[%emt 0:00:09]} Bd7 {[%emt 0:00:08]} 20. Qa6 {[%emt 0:00:34]} Bc8 {[%emt 0:00:59]} 21. Qa4 {[%emt 0:00:09]} Bd7 {[%emt 0:00:34]} 1/2-1/2